[Event "Romanian Superleague 2022"]
[Site "Oradea"]
[Date "2022.09.29"]
[Round "9.16"]
[White "Rogozenco, Dorian"]
[Black "Manea, Alexandru"]
[Result "1/2-1/2"]
[ECO "E09"]
[WhiteElo "2438"]
[BlackElo "2326"]
[Annotator "TA"]
[PlyCount "89"]
[EventDate "2022.09.21"]
[EventType "team-tourn"]
[EventCountry "ROU"]
[SourceTitle "playchess.com"]
[Source "ChessBase"]
[SourceQuality "1"]
[TimeControl "40/5400+30:1800+30"]

{[%evp 21,89,18,29,0,0,0,20,22,25,12,22,22,16,21,34,22,39,13,14,31,73,0,0,0,0,-114,352,352,295,327,350,331,333,323,320,288,372,346,271,-275,-257,-296,-285,-291,-114,-688,-678,-530,142,126,202,177,118,107,1012,998,992,0,0,0,31,0,55,77,35,14,14,0,19,0]} 1. d4 {[%emt 0:00:04]} d5 {[%emt 0:00:04]} 2. c4 {[%emt 0:00:20]} c6 {[%emt 0:00:09]} 3. Nf3 {[%emt 0:00:13]} Nf6 {[%emt 0:00:05]} 4. Qc2 {[%emt 0:00:29]} e6 {[%emt 0:00:19]} 5. Nbd2 {[%emt 0:00:39]} Nbd7 {[%emt 0:00:11]} 6. g3 {[%emt 0:00:17]} Be7 {[%emt 0:00:28]} 7. Bg2 {[%emt 0:00:32]} O-O {[%emt 0:00:07]} 8. O-O {[%emt 0:00:03]} b6 {[%emt 0:00:05]} 9. e4 {[%emt 0:10:50]} dxc4 {[%emt 0:00:12]} 10. Nxc4 {[%emt 0:08:34]} Bb7 {[%emt 0:00:25]} 11. Rd1 {[%emt 0:20:43]} c5 {[%emt 0:06:18]} 12. Nfe5 {[%emt 0:23:25] E09: Closed Catalan: Main Line: 7 Qc2 c6 8 Nbd2.} (12. e5 $5 {[%cal Re5f6]} Nd5 13. dxc5 $11) 12... cxd4 $1 {[%emt 0:18:37]} 13. Rxd4 {[%emt 0:00:10]} Bc5 {[%emt 0:21:27]} 14. Rd1 {[%emt 0:03:53]} Qe7 {[%emt 0:00:27]} 15. Bg5 {[%emt 0:02:50]} Nxe5 {[%emt 0:22:41]} 16. Nxe5 {[%emt 0:00:13][%cal Od1d7] aiming for Rd7!} Rfd8 {[%emt 0:00:05] Prevents Rd7.} 17. Ng4 {[%emt 0:02:03] [#]} h5 $146 {[%emt 0:01:57]} ({Predecessor:} 17... e5 18. Bxf6 gxf6 19. Nh6+ Kh8 20. Qc4 Rd4 21. Rxd4 Bxd4 22. Nf5 Qe6 23. Qc7 Ba6 24. Nxd4 exd4 {1-0 (40) Yangutov,A (2157)-Meremyanina,K (1686) Ekaterinburg 2019}) 18. Nxf6+ {[%emt 0:00:15]} gxf6 {[%emt 0:00:01]} 19. Bh4 {[%emt 0:00:25]} (19. Bh6 $5 {[%cal Rc2e2]}) 19... Bd4 {[%emt 0:01:44]} 20. Qe2 {[%emt 0:02:58] Black must now prevent e5.} Qc5 {[%emt 0:03:47]} 21. Rxd4 {[%emt 0:02:53]} Qxd4 $11 {[%emt 0:00:48]} (21... Rxd4 22. Bxf6 Rc4 23. b4 $18) 22. Qxh5 {[%emt 0:00:23][%cal Oe4e5] And now e5! would win.} Qxb2 {[%emt 0:06:52]} 23. Rf1 {[%emt 0:01:51] [#]} (23. Re1 $1 $11 Rac8 24. Bf1) 23... Kf8 $2 {[%emt 0:05:26][%mdl 8192]} (23... Ba6 $1 $17 {[%cal Ra6f1] stays on course.} 24. e5 Qe2 25. Qxe2 Bxe2) 24. e5 $18 {[%emt 0:03:45] White wants to mate with Qh8+.} Bxg2 {[%emt 0:00:06]} 25. Qh8+ {[%emt 0:09:27]} (25. Bxf6 Ke8 26. Kxg2 Qc2 $16) 25... Ke7 {[%emt 0:00:06]} 26. Qxf6+ {[%emt 0:00:17]} Kd7 {[%emt 0:00:01]} 27. Kxg2 {[%emt 0:05:22] Really sharp!} Kc6 {[%emt 0:05:36]} 28. Qxf7 {[%emt 0:00:55]} Qxa2 {[%emt 0:01:15]} 29. Rc1+ {[%emt 0:00:29]} Kb5 {[%emt 0:00:26]} 30. Kg1 $4 {[%emt 0:00:27][%mdl 8192]} (30. Bxd8 $18 {was the only winning move. White threatens Qd7+ and mate.} Rxd8 31. h4) 30... Rac8 $19 {[%emt 0:01:15]} 31. Rf1 {[%emt 0:00:41]} Rd3 {[%emt 0:00:50]} 32. Bg5 {[%emt 0:00:22]} Rc2 $2 {[%emt 0:01:44]} (32... a5 $19 {is more deadly. Threatens to win with ...a4.} 33. Qg6 Qd5) 33. h4 $2 {[%emt 0:00:31][%mdl 8192] [#]} (33. Qe8+ $17 Ka6 34. Qh5) 33... Rxg3+ $3 {[%emt 0:03:26][%mdl 512]} 34. Kh2 Qb3 $2 {[%emt 0:00:00]} ({Better is} 34... Rd3 $19 35. Kg1 Qd5 36. Qe8+ Kb4 37. Be7+ Kb3) 35. Qd7+ $16 {[%emt 0:00:31]} Kc4 {[%emt 0:00:21]} (35... Kc5 $16) 36. Qxe6+ $18 {[%emt 0:00:56]} Kb5 {[%emt 0:00:33]} ({Black should try} 36... Kc5 $18 37. Qd6+ (37. Qd7 Qd3 $11) 37... Kb5 38. Qd7+ Kc5) 37. Qd7+ $16 {[%emt 0:00:29][%mdl 1024] White has strong compensation.} Kc4 $4 {[%emt 0:00:04][%mdl 8192]} (37... Kc5 $16) 38. Qc6+ $18 {[%emt 0:00:38]} Kd4 {[%emt 0:00:52]} 39. Qd6+ $2 {[%emt 0:00:29]} (39. Rd1+ $18 Rd3 40. Be3+ Kxe5 41. Qe8+ Qe6 42. Bf4+ Kf5 43. Qh5+ Kxf4 44. Qg5+ Ke4 45. Re1+ Kd4 46. Rxe6 Rxf2+ 47. Kg1) 39... Kc4 $11 {[%emt 0:00:01]} 40. Qc7+ {[%emt 0:00:00]} Kd3 {[%emt 0:00:00]} (40... Kb5 $5 {[%cal Rg3h3]} 41. Qd7+ (41. Qxa7 $2 Rxf2+ 42. Rxf2 Rh3+ 43. Kg2 Qg3+ 44. Kf1 Rh1+ 45. Ke2 Qg4+ 46. Kd3 Qc4+ 47. Kd2 Qd4+ 48. Ke2 Qc4+ 49. Kd2 Qb4+ 50. Kd3 Rh3+ 51. Be3 Qb3+ 52. Ke4 Qxe3+ 53. Kd5 Qc5+ 54. Ke6 Qxf2 $19) 41... Kc5 $16) 41. Qd7+ {[%emt 0:27:14]} Kc4 {[%emt 0:06:06]} 42. Qc8+ $1 {[%emt 0:00:53]} Kb5 {[%emt 0:01:26]} 43. Qe8+ {[%emt 0:02:19]} Kc4 $1 {[%emt 0:00:37][%cal Oc2f2] ( -> ...Rxf2+!)} 44. Qf7+ {[%emt 0:00:48]} Kb5 {[%emt 0:00:08]} 45. Qd7+ {[%emt 0:01:26] What a fight!  Weighted Error Value: White=0.55/Black=0.45} (45. Qxa7 Rxf2+ 46. Rxf2 Rh3+ 47. Kg2 Qg3+ 48. Kf1 Rh1+ 49. Ke2 Qg4+ 50. Kd3 Qc4+ 51. Kd2 Qb4+ 52. Kd3 Rh3+ 53. Be3 (53. Ke2 {is a self mate.} Qe4+) 53... Qb3+ 54. Ke4 Qxe3+ 55. Kd5 Qc5+ 56. Ke6 Qxf2 $19) 1/2-1/2

[Event "Romanian Superleague 2022"]
[Site "Oradea"]
[Date "2022.09.29"]
[Round "9.17"]
[White "Antonica, Dragos-Andrei"]
[Black "Manolache, Marius"]
[Result "1/2-1/2"]
[ECO "D03"]
[WhiteElo "2321"]
[BlackElo "2455"]
[Annotator "TA"]
[PlyCount "91"]
[EventDate "2022.09.21"]
[EventType "team-tourn"]
[EventCountry "ROU"]
[SourceTitle "playchess.com"]
[Source "ChessBase"]
[SourceQuality "1"]
[TimeControl "40/5400+30:1800+30"]

{[%evp 9,91,0,0,0,0,-5,0,5,8,0,4,-12,-12,-20,0,0,-4,-26,0,-7,-3,-15,-4,-21,14,14,14,0,0,0,0,-62,-31,-76,-53,-116,-51,-54,-55,-55,-54,-55,-23,-55,-47,-22,-29,-55,0,-47,-47,-33,-55,-64,-64,-64,-64,-64,-58,-64,-64,-64,-64,-64,-64,-64,0,-64,-64,-64,-64,-64,-64,-64,-64,-64,-64,-64,-64,-64,0,-64,0,-64]} 1. d4 {[%emt 0:00:03]} Nf6 {[%emt 0:00:07]} 2. Nf3 {[%emt 0:00:06]} g6 {[%emt 0:00:44]} 3. Bg5 {[%emt 0:00:47]} Bg7 {[%emt 0:00:20]} 4. Nbd2 {[%emt 0:00:21]} d5 {[%emt 0:01:18]} 5. c3 {[%emt 0:01:56]} Nbd7 {[%emt 0:01:19]} 6. e3 {[%emt 0:02:20] D03: 1 d4 d5 2 Nf3 Nf6 3 Bg5, including Torre Attack with early ...d5.} O-O {[%emt 0:02:26]} 7. Bh4 {[%emt 0:02:50]} c5 {[%emt 0:11:33]} 8. Be2 {[%emt 0:01:19]} b6 {[%emt 0:02:24]} 9. O-O {[%emt 0:02:12]} Bb7 {[%emt 0:02:47]} 10. b4 {[%emt 0:03:21]} c4 {[%emt 0:18:35]} 11. a4 {[%emt 0:08:09]} a6 {[%emt 0:02:26] [#]} 12. Qc2 $146 {[%emt 0:11:48]} ({Predecessor:} 12. b5 a5 13. h3 Rc8 14. Qc2 e6 15. Ne5 Qe8 16. Bg3 Nxe5 17. Bxe5 Qe7 18. Rae1 Ne4 19. Bxg7 Kxg7 {½-½ (19) Bruzon Batista,L (2640)-Fier,A (2528) Chess.com INT 2020}) 12... b5 {[%emt 0:09:51]} 13. h3 {[%emt 0:04:54]} (13. Ne5 {with more complications.} Nxe5 14. dxe5 Ne4 15. axb5 axb5 16. Rxa8 Bxa8 17. f4) 13... Bc6 {[%emt 0:01:51]} 14. a5 {[%emt 0:02:06]} Ne8 {[%emt 0:06:14]} 15. Bg3 {[%emt 0:10:16]} Nd6 {[%emt 0:04:57]} 16. Rae1 {[%emt 0:04:50]} f6 {[%emt 0:12:58]} 17. Bxd6 {[%emt 0:23:27]} exd6 {[%emt 0:00:06]} 18. Nh2 {[%emt 0:05:05]} Qe7 {[%emt 0:05:29]} 19. Bd1 {[%emt 0:01:13]} f5 {[%emt 0:00:58]} 20. f4 {[%emt 0:04:01]} (20. Nhf3 $11) 20... Rae8 {[%emt 0:02:23]} 21. Bf3 {[%emt 0:01:46]} Qh4 {[%emt 0:02:17]} 22. Nb1 {[%emt 0:01:30]} (22. Bd1 $15) 22... Bh6 {[%emt 0:01:43]} (22... Nf6 $17 23. Qf2 Qh6) 23. Qf2 {[%emt 0:01:18]} Qxf2+ {[%emt 0:00:33]} 24. Kxf2 {[%emt 0:00:27]} Nf6 {[%emt 0:00:15]} 25. Nd2 {[%emt 0:01:51]} Re7 {[%emt 0:00:54]} 26. g3 {[%emt 0:01:42]} g5 {[%emt 0:00:56]} 27. Rg1 {[%emt 0:00:51]} Kh8 {[%emt 0:00:43]} 28. Bd1 {[%emt 0:01:06]} Bd7 {[%emt 0:01:17]} ({Better is} 28... Ne4+ $15 29. Nxe4 dxe4) 29. Rh1 {[%emt 0:01:37]} (29. Nhf3 $1 $11 {is more appropriate.}) 29... Rg8 {[%emt 0:01:44]} 30. Nhf3 {[%emt 0:01:12]} gxf4 {[%emt 0:03:16]} 31. gxf4 {[%emt 0:00:29]} Bf8 {[%emt 0:01:31]} 32. Reg1 {[%emt 0:00:54]} Reg7 {[%emt 0:01:11]} 33. Rxg7 {[%emt 0:00:23]} Rxg7 {[%emt 0:00:16]} 34. Rg1 {[%emt 0:00:42]} Be7 {[%emt 0:00:22]} 35. Rxg7 {[%emt 0:00:33]} Kxg7 {[%emt 0:00:05]} 36. Kg3 {[%emt 0:00:28]} Nh5+ {[%emt 0:00:19]} 37. Kg2 {[%emt 0:00:20]} Nf6 {[%emt 0:00:19]} 38. Kg3 $1 {[%emt 0:00:14]} Ne4+ {[%emt 0:01:39]} 39. Nxe4 {[%emt 0:00:13]} dxe4 $15 {[%emt 0:00:05][%mdl 4096] Endgame KBB-KBN} ({But not} 39... fxe4 40. Nh4 $16) 40. Ne1 {[%emt 0:00:00]} Be8 {[%emt 0:00:00]} 41. Ng2 {[%emt 0:01:07]} Bf7 {[%emt 0:01:56]} 42. Be2 {[%emt 0:02:51]} d5 {[%emt 0:02:00]} 43. Bd1 {[%emt 0:00:30]} Be8 {[%emt 0:02:55]} 44. Be2 {[%emt 0:01:15]} Bf7 {[%emt 0:00:39]} 45. Bd1 $1 {[%emt 0:00:08]} Be8 {[%emt 0:00:19]} 46. Be2 $1 {[%emt 0:00:10] Weighted Error Value: White=0.10 (very precise) /Black=0.13 (very precise)} 1/2-1/2

[Event "Romanian Superleague 2022"]
[Site "Oradea"]
[Date "2022.09.29"]
[Round "9.18"]
[White "Antal, Hunor-Zoltan"]
[Black "Vilcu, Matei-Stefan"]
[Result "1-0"]
[ECO "D85"]
[WhiteElo "2235"]
[BlackElo "2221"]
[Annotator "TA"]
[PlyCount "67"]
[EventDate "2022.09.21"]
[EventType "team-tourn"]
[EventCountry "ROU"]
[SourceTitle "playchess.com"]
[Source "ChessBase"]
[SourceQuality "1"]
[TimeControl "40/5400+30:1800+30"]

{[%evp 20,67,39,29,67,54,50,62,60,56,72,60,65,43,58,60,85,99,83,93,104,62,79,83,80,46,168,180,189,177,244,232,286,291,569,535,535,528,795,220,795,795,29987,29988,29988,29989,29989,29990,29990,29991]} 1. Nf3 {[%emt 0:00:31]} Nf6 {[%emt 0:00:19]} 2. c4 {[%emt 0:00:07]} g6 {[%emt 0:00:16]} 3. Nc3 {[%emt 0:00:08]} d5 {[%emt 0:00:53]} 4. cxd5 {[%emt 0:00:35]} Nxd5 {[%emt 0:00:06]} 5. Qa4+ {[%emt 0:00:07]} c6 {[%emt 0:20:42]} 6. Nxd5 {[%emt 0:00:09]} Qxd5 {[%emt 0:00:07]} 7. e4 {[%emt 0:00:07]} Qd8 {[%emt 0:04:15]} 8. d4 {[%emt 0:00:58]} Bg7 {[%emt 0:00:07]} 9. Be3 {[%emt 0:00:19]} O-O {[%emt 0:00:33]} 10. Be2 {[%emt 0:01:02]} Nd7 {[%emt 0:02:14]} 11. O-O {[%emt 0:00:02]} Nf6 {[%emt 0:00:07] D85: Exchange Grünfeld: Unusual White 7th moves and lines with 7 Nf3.} 12. Qc2 {[%emt 0:00:39]} Bg4 {[%emt 0:09:25] [#]} 13. h3 $146 {[%emt 0:02:02]} ({Predecessor:} 13. Rfd1 Qa5 14. h3 Bxf3 15. Bxf3 Rfd8 16. a3 Rac8 17. b4 Qc7 18. Rac1 Rd7 19. Qa4 {1-0 (57) Dhanush,B (2232)-Nguyen,H (1793) Batumi 2016}) 13... Bxf3 {[%emt 0:00:29] White is slightly better.} 14. Bxf3 {[%emt 0:00:02]} Re8 {[%emt 0:01:01]} 15. Rfd1 {[%emt 0:00:25]} e6 {[%emt 0:08:09] Inhibits d5.} 16. Rac1 {[%emt 0:01:41]} Qe7 {[%emt 0:00:17]} 17. g3 {[%emt 0:07:18]} e5 {[%emt 0:03:33]} 18. d5 {[%emt 0:20:35]} cxd5 {[%emt 0:08:56]} 19. exd5 {[%emt 0:00:02]} e4 {[%emt 0:07:47]} 20. Bg2 {[%emt 0:00:31]} Rad8 {[%emt 0:00:14]} 21. Qb3 {[%emt 0:03:09]} (21. Bxa7 Nxd5 22. Qb3 b6 $11) 21... b6 {[%emt 0:05:42]} 22. Bf1 {[%emt 0:05:15] White is more active.} Qe5 {[%emt 0:03:46] [#] A mistake that costs the game.} ({Black should play} 22... Rf8 $14) 23. Bf4 $1 $18 {[%emt 0:07:07]} Qf5 {[%emt 0:00:05][%cal Rf6d5]} 24. d6 {[%emt 0:00:49]} g5 {[%emt 0:04:47] [#]} (24... a6 {is a better defense.} 25. Rc7 (25. Qxb6 Nd5 $16) (25. Bxa6 Qxh3 26. Rc7 Rf8 $16) 25... Rf8) 25. Rc7 $1 {[%emt 0:01:15][%csl LRa7,LRf7]} Nd7 {[%emt 0:07:47]} (25... Re6 26. Be3) 26. Rd5 {[%emt 0:06:13]} Ne5 $2 {[%emt 0:02:07]} (26... Be5 {was necessary.}) 27. Bxe5 {[%emt 0:00:38]} ({Not} 27. d7 Re7 28. Bxe5 Rxe5 $16) 27... Rxe5 {[%emt 0:03:00]} 28. Rxe5 {[%emt 0:00:13]} Qxe5 {[%emt 0:01:08]} 29. Qxf7+ {[%emt 0:00:14]} Kh8 {[%emt 0:00:03]} 30. Re7 {[%emt 0:00:25] d7 would kill now.} Qf6 {[%emt 0:00:29]} 31. Re8+ {[%emt 0:00:13] White mates.} Rxe8 {[%emt 0:00:20]} 32. Qxe8+ {[%emt 0:00:02]} Bf8 {[%emt 0:01:48]} 33. d7 {[%emt 0:00:11]} e3 {[%emt 0:00:10]} 34. fxe3 {[%emt 0:00:22] Weighted Error Value: White=0.07 (flawless) /Black=0.65} ({Stronger than} 34. d8=Q Qxf2+ 35. Kh1 Qxf1+ 36. Kh2 Qf2+ 37. Kh1 Qf1+ 38. Kh2 Qf2+ 39. Kh1 Qf1+ $11) 1-0

[Event "Romanian Superleague 2022"]
[Site "Oradea"]
[Date "2022.09.29"]
[Round "9.19"]
[White "Nguyen, Thai Dai Van"]
[Black "Berkes, Ferenc"]
[Result "1/2-1/2"]
[ECO "E04"]
[WhiteElo "2627"]
[BlackElo "2651"]
[Annotator "TA"]
[PlyCount "65"]
[EventDate "2022.09.21"]
[EventType "team-tourn"]
[EventCountry "ROU"]
[SourceTitle "playchess.com"]
[Source "ChessBase"]
[SourceQuality "1"]
[TimeControl "40/5400+30:1800+30"]

{[%evp 23,65,14,21,22,20,18,20,12,12,15,23,0,16,0,20,19,19,18,15,16,23,14,13,11,10,22,12,16,12,14,14,9,10,10,11,10,8,10,8,8,6,7,8,8]} 1. d4 {[%emt 0:00:06]} Nf6 {[%emt 0:00:20]} 2. c4 {[%emt 0:00:20]} e6 {[%emt 0:00:07]} 3. g3 {[%emt 0:00:26]} d5 {[%emt 0:00:22]} 4. Bg2 {[%emt 0:00:12]} dxc4 {[%emt 0:00:23]} 5. Nf3 {[%emt 0:00:34]} c5 {[%emt 0:00:13]} 6. O-O {[%emt 0:00:18]} Nc6 {[%emt 0:00:07]} 7. dxc5 {[%emt 0:08:27]} Qxd1 {[%emt 0:00:11]} 8. Rxd1 {[%emt 0:00:07]} Bxc5 {[%emt 0:00:05]} 9. Nbd2 {[%emt 0:00:10]} c3 {[%emt 0:00:14]} 10. bxc3 {[%emt 0:00:08]} O-O {[%emt 0:00:09]} 11. Nb3 {[%emt 0:00:10]} Be7 {[%emt 0:00:09]} 12. c4 {[%emt 0:11:50]} Bd7 {[%emt 0:01:14]} 13. Bb2 {[%emt 0:00:18] E04: Open Catalan: 5 Nf3.} Rfd8 {[%emt 0:00:14]} 14. Nfd4 {[%emt 0:00:41][%cal Bf3d4,Bd4b5,Bb5d6][%mdl 32]} Rac8 {[%emt 0:00:25]} 15. Nb5 {[%emt 0:06:06]} b6 {[%emt 0:02:26]} 16. Nd6 {[%emt 0:00:18]} Rc7 {[%emt 0:04:31]} 17. Nb5 {[%emt 0:07:42]} Rcc8 {[%emt 0:00:13]} 18. Nd6 {[%emt 0:00:08] [#] Black must now prevent Bxf6.} Rc7 {[%emt 0:00:09]} 19. Ba3 {[%emt 0:00:11] Hoping for Nb5.} Ne5 {[%emt 0:04:33][%cal Bc6e5,Be5c4,Bc4a3][%mdl 32]} 20. Nb5 {[%emt 0:10:07]} Bxb5 {[%emt 0:00:20]} 21. Rxd8+ {[%emt 0:00:05]} Bxd8 {[%emt 0:00:07]} 22. cxb5 {[%emt 0:00:04] [#] Bd6 is the strong threat.} Nc4 {[%emt 0:08:33] Inhibits Bd6. The position is equal.} 23. Rd1 {[%emt 0:13:01]} Rd7 {[%emt 0:00:39]} 24. Rxd7 {[%emt 0:00:12]} Nxd7 {[%emt 0:00:06]} 25. Bb4 {[%emt 0:00:04]} Bc7 {[%emt 0:01:59] [#]} 26. Nd4 $146 {[%emt 0:08:06]} ({Predecessor:} 26. e3 Bd6 27. Bc3 Na3 28. Bf1 Nc2 29. e4 Bb4 30. Bb2 Kf8 31. Bd3 Ne1 32. Be2 Nc2 33. Bd1 Na3 34. Nd4 {½-½ (42) Dutra,A (2406)-Seelig,J (2327) ICCF email 2017}) 26... Bd6 {[%emt 0:00:32]} 27. Be1 {[%emt 0:00:07]} Na3 {[%emt 0:12:53]} 28. e3 {[%emt 0:07:10]} Bc5 {[%emt 0:03:30]} 29. Nc6 {[%emt 0:01:14]} Nxb5 {[%emt 0:00:49]} 30. a4 {[%emt 0:00:08]} Na3 {[%emt 0:04:05]} 31. Nxa7 {[%emt 0:00:16]} Nc2 {[%emt 0:00:17] Pair of Knights!} 32. Bc3 {[%emt 0:00:29]} Bb4 {[%emt 0:00:19]} 33. Bc6 {[%emt 0:03:03] An even fight not without its subleties.  Weighted Error Value: White=0.02 (flawless) /Black=0.00 (flawless)} 1/2-1/2

[Event "Romanian Superleague 2022"]
[Site "Oradea"]
[Date "2022.09.29"]
[Round "9.20"]
[White "Lupulescu, Constantin"]
[Black "Nisipeanu, Liviu-Dieter"]
[Result "1/2-1/2"]
[ECO "B30"]
[WhiteElo "2614"]
[BlackElo "2633"]
[Annotator "TA"]
[PlyCount "85"]
[EventDate "2022.09.21"]
[EventType "team-tourn"]
[EventCountry "ROU"]
[SourceTitle "playchess.com"]
[Source "ChessBase"]
[SourceQuality "1"]
[TimeControl "40/5400+30:1800+30"]

{[%evp 11,85,15,17,20,17,10,24,14,14,17,14,0,9,0,0,0,16,0,0,-6,8,-14,42,42,42,42,38,38,43,38,38,37,34,36,62,43,43,44,66,39,39,39,39,39,39,39,39,39,39,39,39,39,41,18,41,18,18,18,34,34,34,18,18,18,59,18,18,18,18,0,18,18,18,0,26,26]} 1. e4 {[%emt 0:00:04]} c5 {[%emt 0:00:27]} 2. Nf3 {[%emt 0:00:07]} e6 {[%emt 0:00:03]} 3. g3 {[%emt 0:00:04]} Nc6 {[%emt 0:00:25]} 4. Bg2 {[%emt 0:00:06]} Nf6 {[%emt 0:00:08]} 5. d3 {[%emt 0:00:05]} d6 {[%emt 0:01:50][%cal Bd7d6,Bd6d5][%mdl 32]} 6. O-O {[%emt 0:01:08]} Be7 {[%emt 0:00:03]} 7. a4 {[%emt 0:04:39] B30: Sicilian: 2...Nc6 3 Bb5, lines without ...g6.} O-O {[%emt 0:00:28]} 8. Na3 {[%emt 0:01:13]} a6 {[%emt 0:09:03]} 9. Nc4 {[%emt 0:05:41]} d5 {[%emt 0:04:02] [#]} 10. Nce5 $146 {[%emt 0:01:19]} ({Predecessor:} 10. Ncd2 Qc7 11. Re1 dxe4 12. dxe4 e5 13. c3 h6 14. Nh4 Be6 15. Nf5 b5 16. axb5 axb5 17. Rxa8 Rxa8 {0-1 (38) Malecki,R (1959)-Musial,I (1896) Poronin 2021}) 10... Nxe5 {[%emt 0:01:05]} ({Don't do} 10... dxe4 11. Nxc6 bxc6 12. dxe4 $16) 11. Nxe5 {[%emt 0:00:04]} Qc7 {[%emt 0:00:20]} 12. Ng4 {[%emt 0:19:36]} Nxg4 {[%emt 0:07:16]} 13. Qxg4 {[%emt 0:00:04]} e5 {[%emt 0:12:00]} 14. Qe2 {[%emt 0:03:08]} d4 {[%emt 0:01:06]} 15. a5 {[%emt 0:02:56]} Bd7 {[%emt 0:10:14][%cal Oc5c4]} 16. Bd2 {[%emt 0:04:41]} b5 {[%emt 0:02:04]} (16... Bd6 $11) 17. axb6 $1 $14 {[%emt 0:00:35]} Qxb6 {[%emt 0:00:05]} 18. Ba5 {[%emt 0:02:55]} Qb8 {[%emt 0:01:45]} 19. b3 {[%emt 0:03:16]} Bd8 {[%emt 0:00:49]} 20. f4 {[%emt 0:05:11]} Bxa5 {[%emt 0:03:46]} 21. Rxa5 {[%emt 0:00:05]} Qc7 {[%emt 0:08:09]} 22. Qd2 {[%emt 0:00:39]} f6 {[%emt 0:03:37]} 23. h4 {[%emt 0:07:49]} Qd6 {[%emt 0:06:16]} 24. f5 {[%emt 0:02:10]} Kf7 {[%emt 0:01:52][%cal Bg8f7,Bf7e7,Be7d7,Bd7c7,Bc7b6,Bb6b7][%mdl 32]} 25. g4 {[%emt 0:03:08]} h6 {[%emt 0:00:29]} 26. Kf2 {[%emt 0:03:57]} Rh8 {[%emt 0:00:17]} 27. Kg3 {[%emt 0:01:28]} Ke7 {[%emt 0:00:44]} 28. Bf3 {[%emt 0:04:13]} Bb5 {[%emt 0:02:59]} 29. Kf2 {[%emt 0:04:12][%cal Bg3f2,Bf2e2,Be2d1,Bd1c1,Bc1b2][%mdl 32]} Kd7 {[%emt 0:00:29]} 30. Rg1 {[%emt 0:00:45]} Kc7 {[%emt 0:01:10]} 31. Ke2 {[%emt 0:02:28]} Kb6 {[%emt 0:00:21]} 32. Kd1 {[%emt 0:00:38]} Qe7 {[%emt 0:00:49]} 33. Kc1 {[%emt 0:00:33]} Qd6 {[%emt 0:03:35]} 34. Kb2 {[%emt 0:02:09]} Qe7 {[%emt 0:00:05]} 35. Rga1 {[%emt 0:01:48]} Kb7 {[%emt 0:01:10]} 36. Rh1 {[%emt 0:00:55]} Kb6 {[%emt 0:01:01]} 37. Rg1 {[%emt 0:02:56]} Ra7 {[%emt 0:02:52]} 38. Rg3 {[%emt 0:02:12]} Raa8 {[%emt 0:00:56]} 39. Bd1 {[%emt 0:01:28]} Qd6 {[%emt 0:00:22]} 40. Bf3 {[%emt 0:00:00]} Qe7 {[%emt 0:00:00]} 41. Rg2 {[%emt 0:08:15]} Qd6 {[%emt 0:00:33]} 42. Rg1 {[%emt 0:09:44]} Qe7 {[%emt 0:04:02]} 43. Rg3 {[%emt 0:13:13] Weighted Error Value: White=0.08 (flawless) /Black=0.07 (flawless)} 1/2-1/2